bitfinex/quotes_SOLUSD_20230703
["timestamp","ask_amount","ask_price","bid_price","bid_amount"]
[1688410578938,56.594,19.242,19.232,21.994]
[1688410579146,56.594,19.242,19.233,55.0]
[1688410579147,21.988,19.238,19.233,55.0]
[1688410579453,103.258,19.244,19.234,21.991]
[1688410579454,159.848,19.244,19.234,21.991]
[1688410579655,56.59,19.244,19.234,21.991]
[1688410579854,56.59,19.244,19.235,55.0]
[1688410580052,21.984,19.242,19.237,21.988]
[1688410580941,78.578,19.242,19.235,21.99]
[1688410581634,21.984,19.242,19.235,21.99]
[1688410585538,56.581,19.247,19.236,55.0]
[1688410585739,56.581,19.247,19.239,21.986]
[1688410586152,21.98,19.245,19.239,21.986]
[1688410591943,21.98,19.245,19.238,21.986]
[1688410592248,21.98,19.245,19.239,21.986]
[1688410592869,21.98,19.245,19.238,21.986]
[1688410594463,125.227,19.245,19.237,21.988]
[1688410598567,125.227,19.245,19.234,21.991]
[1688410598954,75.0,19.244,19.227,151.8486]
[1688410599155,78.59,19.239,19.229,21.996]
[1688410605962,78.59,19.239,19.228,21.998]
[1688410606160,78.59,19.239,19.229,55.0]
[1688410606873,78.59,19.239,19.227,106.04879922]
[1688410607060,78.59,19.239,19.227,10.83719922]
[1688410607569,78.59,19.239,19.227,32.83619922]
[1688410611078,56.596,19.242,19.228,55.0]
[1688410611286,3.0,19.262,19.232,181.933]
[1688410611287,21.982,19.243,19.232,181.933]
[1688410611455,21.981,19.244,19.233,55.0]
[1688410611657,31.96,19.26,19.236,78.6]
[1688410611882,21.971,19.252,19.237,55.0]
[1688410612170,41.973,19.251,19.243,78.57]
[1688410613660,41.973,19.251,19.243,21.98]
[1688410613874,41.973,19.251,19.239,56.603]
[1688410614067,41.973,19.251,19.242,21.982]
[1688410614760,145.188,19.251,19.242,21.982]
[1688410616274,41.973,19.251,19.242,21.982]
[1688410618473,41.973,19.251,19.237,10.83719922]
[1688410618677,41.973,19.251,19.238,111.606]
[1688410620077,41.973,19.251,19.242,21.982]
[1688410620778,41.973,19.251,19.238,111.606]
[1688410620984,41.973,19.251,19.241,21.983]
[1688410621777,41.973,19.251,19.24,21.984]
[1688410623287,41.973,19.251,19.233,149.0112]
[1688410623589,21.978,19.246,19.236,21.989]
[1688410626964,21.978,19.246,19.237,55.0]
[1688410627178,21.978,19.246,19.239,21.985]
[1688410627379,21.978,19.247,19.239,21.985]
[1688410627772,125.214,19.247,19.237,55.0]
[1688410627972,125.214,19.247,19.238,21.986]
[1688410629786,125.214,19.247,19.233,197.3202]
[1688410629787,125.214,19.247,19.233,94.0112]
[1688410630008,55.0,19.246,19.234,21.991]
[1688410630291,78.575,19.243,19.234,21.991]
[1688410630667,181.833,19.243,19.233,116.0042]
[1688410630872,181.833,19.243,19.233,94.0112]
[1688410631067,181.833,19.243,19.233,21.992]
[1688410632080,181.833,19.243,19.229,56.63]
[1688410632276,181.833,19.243,19.23,20.0]
[1688410632480,181.833,19.243,19.23,30.83719922]
[1688410632870,181.833,19.243,19.232,21.993]
[1688410639484,55.0,19.242,19.232,21.993]
[1688410639680,78.589,19.239,19.232,21.993]
[1688410640020,78.589,19.239,19.231,21.994]
[1688410640494,181.868,19.239,19.228,21.998]
[1688410641094,181.868,19.239,19.227,117.4509]
[1688410641283,181.868,19.239,19.227,21.999]
[1688410641892,181.868,19.239,19.226,22.0]
[1688410644107,181.868,19.239,19.225,32.83919922]
[1688410644287,181.916,19.235,19.224,22.003]
[1688410644488,181.916,19.235,19.222,10.83719922]
[1688410645704,181.916,19.235,19.223,22.003]
[1688410649685,181.916,19.235,19.223,32.84019922]
[1688410651201,181.916,19.235,19.221,22.006]
[1688410651502,181.95,19.231,19.222,20.0]
[1688410651800,78.625,19.231,19.222,42.005]
[1688410651986,78.625,19.231,19.225,22.002]
[1688410652187,21.996,19.231,19.225,22.002]
[1688410654004,21.996,19.231,19.224,22.002]
[1688410656005,21.996,19.231,19.223,65.83719922]
[1688410656006,21.996,19.231,19.223,77.003]
[1688410658208,125.318,19.231,19.222,20.0]
[1688410658396,125.318,19.231,19.222,22.005]
[1688410663408,21.996,19.231,19.222,22.005]
[1688410663616,21.996,19.231,19.223,55.0]
[1688410663806,21.996,19.231,19.225,22.002]
[1688410664507,103.279,19.24,19.226,55.0]
[1688410664813,21.991,19.235,19.23,32.05]
[1688410665015,21.991,19.235,19.231,21.995]
[1688410667106,21.991,19.235,19.23,21.996]
[1688410667306,21.991,19.235,19.231,55.0]
[1688410668815,21.991,19.235,19.231,76.995]
[1688410671602,21.991,19.235,19.231,55.0]
[1688410675437,103.214,19.252,19.232,20.0]
[1688410675645,21.972,19.252,19.238,181.878]
[1688410675926,56.558,19.255,19.238,181.878]
[1688410675927,21.969,19.254,19.24,32.14]
[1688410676106,21.967,19.256,19.244,21.98]
[1688410676308,21.967,19.256,19.24,32.14]
[1688410676630,21.967,19.256,19.24,21.985]
[1688410676918,21.967,19.256,19.241,20.0]
[1688410677221,21.967,19.256,19.245,21.979]
[1688410677415,21.967,19.256,19.244,21.98]
[1688410677718,21.967,19.256,19.241,20.0]
[1688410677932,21.967,19.256,19.242,55.0]
[1688410678729,21.967,19.256,19.244,21.979]
[1688410682536,21.967,19.256,19.245,55.0]
[1688410682838,21.967,19.256,19.248,21.975]
[1688410684138,21.967,19.256,19.247,21.976]
[1688410684327,21.967,19.256,19.246,21.977]
[1688410684523,21.967,19.256,19.247,21.977]
[1688410685020,21.967,19.256,19.242,67.42919922]
[1688410685230,21.967,19.256,19.243,55.0]
[1688410685822,21.967,19.256,19.247,21.976]
[1688410686138,21.967,19.256,19.244,21.98]
[1688410686322,55.0,19.255,19.244,21.979]
[1688410686521,21.972,19.252,19.244,21.979]
[1688410689436,20.0,19.251,19.238,103.282]
[1688410689638,21.977,19.248,19.244,21.98]
[1688410690320,21.977,19.248,19.243,21.98]
[1688410692734,21.973,19.251,19.243,21.98]
[1688410692923,21.972,19.252,19.243,21.98]
[1688410693534,21.971,19.253,19.243,21.98]
[1688410693737,21.971,19.253,19.244,55.0]
[1688410693939,21.971,19.253,19.246,21.977]
[1688410696039,21.97,19.254,19.247,55.0]
[1688410696340,21.97,19.254,19.249,21.975]
[1688410698940,56.552,19.257,19.249,21.975]
[1688410699142,21.969,19.255,19.249,21.975]
[1688410705650,21.969,19.255,19.247,111.578]
[1688410705651,78.525,19.255,19.247,21.977]
[1688410711862,181.718,19.255,19.244,85.7266]
[1688410712050,55.0,19.254,19.242,21.983]
[1688410712359,181.759,19.251,19.241,21.983]
[1688410712539,181.759,19.251,19.242,20.0]
[1688410713152,181.759,19.251,19.242,41.982]
[1688410714458,181.759,19.251,19.238,56.606]
[1688410714647,87.2,19.25,19.237,21.987]
[1688410714855,181.797,19.247,19.233,56.619]
[1688410715361,181.797,19.247,19.237,21.987]
[1688410715657,78.56,19.247,19.237,21.987]
[1688410718265,21.978,19.247,19.237,125.277]
[1688410718463,21.978,19.247,19.238,55.0]
[1688410718777,21.978,19.247,19.24,21.984]
[1688410719474,44.82299216,19.259,19.24,21.984]
[1688410719655,21.975,19.249,19.241,75.0]
[1688410719851,21.975,19.249,19.244,21.979]
[1688410720562,56.56,19.254,19.244,21.979]
[1688410720752,21.971,19.253,19.244,21.979]
[1688410720952,21.971,19.253,19.247,21.976]
[1688410726553,21.97,19.254,19.247,21.976]
[1688410728254,21.967,19.256,19.247,125.212]
[1688410728856,21.967,19.257,19.247,125.212]
[1688410731685,52.03,19.275,19.247,136.04919922]
[1688410731975,21.959,19.264,19.254,181.726]
[1688410732161,103.112,19.271,19.254,181.726]
[1688410732361,56.516,19.269,19.254,192.56319922]
[1688410732564,21.958,19.264,19.254,192.56319922]
[1688410732765,21.957,19.265,19.254,192.56319922]
[1688410735178,21.956,19.266,19.259,78.507]
[1688410736388,21.955,19.267,19.259,78.507]
[1688410740277,21.955,19.267,19.259,21.963]
[1688410742561,21.955,19.267,19.256,77.3684]
[1688410742762,55.0,19.266,19.258,21.964]
[1688410742958,21.958,19.264,19.258,21.964]
[1688410743362,21.957,19.265,19.258,21.964]
[1688410743678,56.517,19.269,19.258,21.964]
[1688410743887,21.956,19.266,19.258,21.964]
[1688410745363,21.956,19.266,19.251,10.83719922]
[1688410745562,55.0,19.265,19.255,21.967]
[1688410745775,21.96,19.262,19.255,21.967]
[1688410747164,21.96,19.262,19.254,21.968]
[1688410753290,21.96,19.262,19.25,21.973]
[1688410753492,75.0,19.261,19.249,112.3848]
[1688410753786,78.514,19.258,19.246,56.582]
[1688410753984,78.514,19.258,19.248,21.975]
[1688410756979,21.965,19.258,19.248,125.206]
[1688410757180,21.965,19.258,19.248,136.04319922]
[1688410757392,21.965,19.258,19.249,10.83719922]
[1688410757586,21.965,19.258,19.251,78.539]
[1688410757887,21.964,19.259,19.251,78.539]
[1688410758091,159.672,19.265,19.257,21.965]
[1688410758289,21.959,19.263,19.257,21.965]
[1688410760290,56.516,19.269,19.257,21.965]
[1688410760489,21.955,19.267,19.263,21.958]
[1688410762178,21.955,19.267,19.262,21.959]
[1688410762373,21.954,19.268,19.262,21.959]
[1688410763275,21.945,19.275,19.262,181.651]
[1688410763471,21.945,19.275,19.266,21.955]
[1688410765886,21.945,19.275,19.267,55.0]
[1688410766200,21.945,19.275,19.269,21.951]
[1688410766384,21.942,19.278,19.275,21.944]
[1688410766582,56.478,19.282,19.275,21.944]
[1688410766794,20.0,19.281,19.275,21.944]
[1688410766991,21.942,19.278,19.274,21.945]
[1688410767381,21.942,19.278,19.267,55.0]
[1688410767698,21.942,19.278,19.266,55.0]
[1688410769190,21.942,19.278,19.27,21.95]
[1688410771491,21.942,19.278,19.269,21.951]
[1688410774198,21.363274,19.278,19.268,21.952]
[1688410774704,21.363274,19.278,19.267,21.953]
[1688410777902,21.363274,19.278,19.267,135.91919922]
[1688410778090,21.363274,19.278,19.268,55.0]
[1688410778289,21.363274,19.278,19.271,21.95]
[1688410781107,21.363274,19.278,19.267,10.83719922]
[1688410781291,124.433274,19.278,19.267,21.953]
[1688410786693,124.433274,19.278,19.267,78.474]
[1688410787098,124.433274,19.278,19.263,153.0128]
[1688410787305,55.0,19.277,19.265,21.956]
[1688410787501,181.542,19.274,19.265,21.956]
[1688410789089,181.542,19.274,19.264,21.957]
[1688410789403,21.952,19.269,19.263,21.958]
[1688410789595,21.952,19.269,19.262,21.959]
[1688410789903,21.952,19.269,19.257,94.6757]
[1688410790089,78.485,19.265,19.257,94.6757]
[1688410790291,78.485,19.265,19.256,21.966]
[1688410790292,181.625,19.265,19.256,21.966]
[1688410791610,181.625,19.265,19.255,21.967]
[1688410792618,181.625,19.265,19.252,56.564]
[1688410793504,181.625,19.265,19.254,21.968]
[1688410793702,181.625,19.265,19.253,21.969]
[1688410794012,75.0,19.264,19.25,94.6757]
[1688410794199,75.0,19.264,19.251,21.972]
[1688410794200,181.672,19.26,19.251,21.972]
[1688410795121,78.504,19.26,19.251,21.972]
[1688410795612,78.504,19.26,19.25,21.973]
[1688410799810,78.504,19.26,19.248,21.976]
[1688410800023,78.504,19.26,19.244,98.3112]
[1688410800311,78.504,19.26,19.247,21.977]
[1688410800515,78.504,19.26,19.248,76.975]
[1688410801503,78.504,19.26,19.248,55.0]
[1688410802207,78.504,19.26,19.248,76.976]
[1688410802801,78.504,19.26,19.248,55.0]
[1688410804214,78.504,19.26,19.248,76.976]
[1688410805317,78.504,19.26,19.248,21.976]
[1688410805924,78.504,19.26,19.247,21.977]
[1688410806410,55.0,19.259,19.244,98.3112]
[1688410806724,181.722,19.255,19.244,98.3112]
[1688410806907,181.722,19.255,19.24,54.314]
[1688410807100,181.722,19.255,19.238,21.987]
[1688410807301,181.722,19.255,19.233,103.308]
[1688410807302,181.775,19.249,19.237,21.988]
[1688410809215,181.775,19.249,19.237,78.597]
[1688410810727,78.549,19.249,19.237,181.887]
[1688410810907,21.975,19.249,19.238,55.0]
[1688410811106,9.99192875,19.258,19.241,78.58]
[1688410811313,21.97,19.253,19.242,75.0]
[1688410811626,21.969,19.254,19.245,78.564]
[1688410811823,56.548,19.258,19.245,78.564]
[1688410812127,21.966,19.258,19.249,78.547]
[1688410815919,21.966,19.258,19.249,21.974]
[1688410819814,55.0,19.257,19.249,21.974]
[1688410820015,21.968,19.255,19.249,21.974]
[1688410820425,56.545,19.259,19.249,21.974]
[1688410820628,21.965,19.258,19.249,125.2]
[1688410821117,21.965,19.258,19.249,21.974]
[1688410822639,56.536,19.262,19.249,21.974]
[1688410822825,21.964,19.259,19.25,55.0]
[1688410823029,21.964,19.259,19.252,21.97]
[1688410823737,21.964,19.259,19.252,21.8206057]
[1688410825827,21.963,19.26,19.252,21.8206057]
[1688410826241,21.962,19.261,19.252,125.0306057]
[1688410828037,21.962,19.261,19.252,21.8206057]
[1688410828241,125.123,19.261,19.251,21.971]
[1688410828534,21.966,19.257,19.251,21.972]
[1688410828924,21.966,19.257,19.25,21.973]
[1688410830130,21.966,19.257,19.247,56.579]
[1688410830730,21.966,19.257,19.25,21.973]
[1688410830933,21.966,19.257,19.251,20.0]
[1688410831232,21.966,19.257,19.252,21.97]
[1688410831437,21.965,19.258,19.252,21.97]
[1688410832131,21.964,19.259,19.252,21.97]
[1688410833034,32.11,19.27,19.252,21.97]
[1688410833237,21.951,19.27,19.253,55.0]
[1688410833447,21.951,19.27,19.258,78.511]
[1688410833938,159.573,19.277,19.262,78.492]
[1688410834131,21.948,19.273,19.262,78.492]
[1688410834534,21.948,19.273,19.262,21.959]
[1688410837938,21.948,19.273,19.261,56.536]
[1688410837939,159.607,19.273,19.261,21.96]
[1688410838150,63.95,19.28,19.266,21.955]
[1688410838351,103.056,19.281,19.266,21.955]
[1688410838352,56.483,19.281,19.266,78.479]
[1688410838532,21.942,19.278,19.266,78.479]
[1688410838925,21.942,19.278,19.266,21.955]
[1688410839326,21.942,19.278,19.26,32.14]
[1688410839327,20.0,19.277,19.26,56.539]
[1688410839531,21.949,19.272,19.263,21.958]
[1688410840748,78.455,19.272,19.263,21.958]
[1688410840943,55.0,19.271,19.263,21.958]
[1688410841144,21.952,19.269,19.261,95.4703]
[1688410841353,21.952,19.269,19.258,56.547]
[1688410841739,21.952,19.269,19.258,67.38419922]
[1688410841943,21.952,19.269,19.261,21.961]
[1688410842247,21.952,19.269,19.258,10.83719922]
[1688410842460,125.07,19.269,19.258,21.964]
[1688410842745,21.952,19.269,19.258,21.964]
[1688410843134,21.952,19.269,19.258,32.80119922]
[1688410843736,21.952,19.269,19.259,55.0]
[1688410843937,21.952,19.269,19.262,21.96]
[1688410845336,21.952,19.269,19.261,21.96]
[1688410846539,21.952,19.269,19.258,67.38219922]
[1688410846540,21.952,19.269,19.258,10.83719922]
[1688410846739,21.952,19.269,19.259,21.963]
[1688410849253,21.952,19.269,19.259,32.80019922]
[1688410849456,21.952,19.269,19.26,55.0]
[1688410849655,21.952,19.269,19.26,76.961]
[1688410849840,21.952,19.269,19.26,21.961]
[1688410850043,21.952,19.269,19.259,32.79919922]
[1688410850854,125.07,19.269,19.259,10.83719922]
[1688410851156,125.07,19.269,19.258,21.963]
[1688410851157,125.07,19.269,19.258,21.964]
[1688410851457,125.07,19.269,19.257,94.6818]
[1688410852061,125.07,19.269,19.256,21.966]
[1688410852856,125.07,19.269,19.259,21.962]
[1688410853053,125.07,19.269,19.26,20.0]
[1688410853456,125.07,19.269,19.26,41.961]
[1688410854444,125.07,19.269,19.26,21.961]
[1688410854761,125.07,19.269,19.259,21.963]
[1688410855655,21.952,19.269,19.259,21.963]
[1688410855859,21.952,19.269,19.26,20.0]
[1688410856058,21.952,19.269,19.262,21.959]
[1688410857661,21.948,19.273,19.262,125.115]
[1688410857859,103.052,19.282,19.263,165.2035]
[1688410858068,103.052,19.282,19.271,21.949]
[1688410858360,32.14,19.29,19.27,56.51]
[1688410858361,21.943,19.278,19.275,21.945]
[1688410859149,56.477,19.282,19.275,21.945]
[1688410859150,21.942,19.279,19.275,21.945]
[1688410860069,103.038,19.285,19.275,21.945]
[1688410860257,111.471,19.284,19.275,21.945]
[1688410860650,21.94,19.28,19.271,56.508]
[1688410860949,21.94,19.28,19.275,21.945]
[1688410861170,21.94,19.28,19.274,21.945]
[1688410862658,21.94,19.28,19.269,56.515]
[1688410862865,55.0,19.279,19.269,56.515]
[1688410863172,21.944,19.276,19.263,193.3495]
[1688410863384,21.944,19.276,19.269,21.951]
[1688410866373,21.944,19.276,19.267,21.954]
[1688410866579,55.0,19.275,19.263,90.2035]
[1688410866761,21.949,19.272,19.263,146.7335]
[1688410868170,21.949,19.272,19.265,21.956]
[1688410873271,55.0,19.275,19.265,21.956]
[1688410873473,56.487,19.279,19.265,21.956]
[1688410873773,55.0,19.278,19.265,21.956]
[1688410874172,21.946,19.275,19.265,21.956]
[1688410877297,21.946,19.275,19.265,125.096]
[1688410879172,21.946,19.275,19.265,21.956]
[1688410880789,125.032,19.275,19.265,21.956]
[1688410881103,55.0,19.274,19.253,10.83719922]
[1688410881299,181.589,19.269,19.258,21.964]
[1688410881478,181.589,19.269,19.257,21.965]
[1688410881781,181.589,19.269,19.255,21.967]
[1688410881987,181.632,19.265,19.254,115.092]
[1688410882286,181.632,19.265,19.253,21.97]
[1688410885188,78.487,19.265,19.253,21.97]
[1688410886879,78.487,19.265,19.251,10.83719922]
[1688410887076,78.487,19.265,19.247,93.124]
[1688410887077,75.0,19.264,19.247,93.124]
[1688410887278,78.508,19.259,19.249,21.974]
[1688410889492,78.508,19.259,19.248,21.975]
[1688410890379,78.508,19.259,19.247,115.1]
[1688410890696,55.0,19.258,19.247,115.1]
[1688410890994,78.525,19.255,19.247,115.1]
[1688410891693,21.968,19.255,19.247,115.1]
[1688410891991,21.968,19.255,19.247,21.976]
[1688410893882,21.965,19.258,19.248,75.0]
[1688410894196,56.537,19.262,19.251,78.54]
[1688410894197,21.964,19.259,19.251,78.54]
[1688410894494,21.963,19.26,19.252,75.0]
[1688410894689,21.963,19.26,19.255,21.967]
[1688410894889,78.505,19.26,19.252,20.0]
[1688410895194,21.963,19.26,19.254,21.969]
[1688410895397,56.531,19.264,19.254,21.969]
[1688410896289,9.99192875,19.272,19.254,21.969]
[1688410896596,56.508,19.272,19.26,31.95]
[1688410896788,21.953,19.269,19.265,21.956]
[1688410897098,21.953,19.269,19.263,21.958]
[1688410897485,21.953,19.269,19.262,21.959]
[1688410899301,103.096,19.274,19.262,21.959]
[1688410899498,31.89,19.28,19.262,21.959]
[1688410899704,21.952,19.269,19.262,21.959]
[1688410901011,21.952,19.269,19.263,55.0]
[1688410901300,21.952,19.269,19.264,21.957]
[1688410901699,56.504,19.273,19.264,21.957]
[1688410901700,21.951,19.27,19.264,21.957]
[1688410902009,21.949,19.272,19.265,55.0]
[1688410902208,21.949,19.272,19.268,21.952]
[1688410902808,21.949,19.272,19.268,21.953]
[1688410905614,80.11664802,19.29,19.268,21.953]
[1688410905812,103.031,19.286,19.27,31.99]
[1688410906017,21.938,19.282,19.274,21.945]
[1688410907195,56.463,19.287,19.274,21.945]
[1688410907395,21.935,19.284,19.274,21.945]
[1688410908506,124.973,19.284,19.274,21.945]
[1688410908922,124.973,19.284,19.272,21.948]
[1688410909116,124.973,19.284,19.273,21.947]
[1688410909620,124.973,19.284,19.272,21.947]
[1688410909812,124.973,19.284,19.271,21.949]
[1688410910014,181.484,19.28,19.272,20.0]
[1688410910221,181.484,19.28,19.272,41.948]
[1688410910421,181.484,19.28,19.269,20.0]
[1688410910619,21.94,19.28,19.271,78.458]
[1688410910818,56.463,19.287,19.271,21.949]
[1688410911003,32.08,19.29,19.271,21.949]
[1688410911004,21.94,19.28,19.272,75.0]
[1688410911202,21.94,19.28,19.274,21.946]
[1688410912197,103.038,19.285,19.274,21.946]
[1688410912403,113.01092875,19.288,19.275,55.0]
[1688410912608,21.938,19.282,19.276,21.943]
[1688410912804,21.938,19.282,19.272,20.0]
[1688410913122,21.938,19.282,19.273,55.0]
[1688410913312,21.938,19.282,19.275,21.945]
[1688410917824,21.938,19.282,19.276,55.0]
[1688410918017,21.938,19.282,19.277,21.942]
[1688410921612,78.415,19.282,19.275,21.944]
[1688410922331,21.938,19.282,19.275,21.944]
[1688410924027,21.937,19.282,19.275,21.944]
[1688410924534,21.937,19.282,19.275,78.442]
[1688410925039,21.936,19.283,19.276,55.0]
[1688410925243,103.014,19.289,19.279,21.94]
[1688410925244,21.936,19.284,19.279,21.94]
[1688410925534,9.99192875,19.293,19.28,55.0]
[1688410925725,21.929,19.29,19.283,21.935]
[1688410925929,21.929,19.29,19.283,21.86767133]
[1688410926323,21.927,19.291,19.283,21.86767133]
[1688410926525,56.443,19.294,19.283,21.86767133]
[1688410927033,56.443,19.294,19.283,32.70487055]
[1688410927338,56.425,19.3,19.284,10.83719922]
[1688410927546,21.921,19.297,19.288,78.386]
[1688410928142,21.921,19.297,19.288,21.929]
[1688410928931,21.921,19.297,19.289,55.0]
[1688410929135,21.921,19.297,19.291,21.926]
[1688410930119,181.323,19.297,19.284,56.471]
[1688410930325,181.323,19.297,19.276,52.03]
[1688410930326,78.354,19.297,19.289,21.929]
[1688410930930,77.77578474,19.297,19.289,21.929]
[1688410931638,77.77578474,19.297,19.288,21.929]
[1688410934841,77.77578474,19.297,19.286,21.932]
[1688410935042,55.0,19.296,19.286,21.932]
[1688410935347,55.0,19.296,19.282,147.0282]
[1688410935348,78.37,19.293,19.285,21.933]
[1688410935653,181.36,19.293,19.282,90.5532]
[1688410935826,181.36,19.293,19.284,21.934]
[1688410936243,181.36,19.293,19.278,56.488]
[1688410936444,75.0,19.292,19.28,21.938]
[1688410936635,78.388,19.289,19.28,21.938]
[1688410936835,78.388,19.289,19.277,21.942]
[1688410937142,78.388,19.289,19.273,163.83689922]
[1688410937327,78.388,19.289,19.278,21.941]
[1688410939737,78.388,19.289,19.279,55.0]
[1688410939943,78.388,19.289,19.282,21.937]
[1688410940143,78.388,19.289,19.281,21.938]
[1688410941141,78.388,19.289,19.275,56.497]
[1688410941341,78.388,19.289,19.279,21.94]
[1688410945252,78.387,19.289,19.279,21.94]
[1688410946157,78.387,19.289,19.279,32.77719922]
[1688410946357,78.387,19.289,19.28,55.0]
[1688410946649,78.387,19.289,19.282,21.936]
[1688410946861,21.93,19.289,19.282,21.936]
[1688410948242,21.928,19.291,19.282,135.82219922]
[1688410948441,21.925,19.293,19.283,10.83719922]
[1688410948651,21.924,19.294,19.29,21.927]
[1688410950358,21.924,19.294,19.289,21.928]
[1688410951051,21.924,19.294,19.288,21.929]
[1688410951651,21.924,19.294,19.284,56.47]
[1688410951858,21.924,19.294,19.282,148.2362]
[1688410952242,124.909,19.294,19.285,21.933]
[1688410952442,124.909,19.294,19.284,21.934]
[1688410954550,21.924,19.294,19.284,21.934]
[1688410955456,124.909,19.294,19.284,21.934]
[1688410957162,21.924,19.294,19.284,21.934]
[1688410957542,21.924,19.294,19.284,78.405]
[1688410957767,21.923,19.295,19.284,78.405]
[1688410958963,31.88,19.3,19.284,78.405]
[1688410959151,21.923,19.295,19.29,21.928]
[1688410959464,56.428,19.299,19.29,21.928]
[1688410959964,21.92,19.297,19.29,21.928]
[1688410960166,78.353,19.297,19.29,21.928]
[1688410961561,78.353,19.297,19.289,21.928]
[1688410962147,78.353,19.297,19.288,21.93]
[1688410962342,78.353,19.297,19.287,21.931]
[1688410963364,21.92,19.297,19.287,21.931]
[1688410963561,56.422,19.301,19.287,32.76819922]
[1688410963864,21.92,19.298,19.291,21.927]
[1688410964045,31.97,19.31,19.291,21.927]
[1688410964046,21.917,19.3,19.291,21.927]
[1688410964243,21.918,19.299,19.291,21.927]
[1688410964447,78.345,19.299,19.291,21.927]
[1688410964942,181.303,19.299,19.29,21.927]
[1688410965869,21.918,19.299,19.29,21.927]
[1688410966050,21.918,19.299,19.293,21.924]
[1688410971852,21.918,19.299,19.292,21.925]
[1688410972647,124.876,19.299,19.287,21.931]
[1688410972856,124.876,19.299,19.286,92.1889]
[1688410973457,124.876,19.299,19.287,21.931]
[1688410976659,124.876,19.299,19.287,78.393]
[1688410977060,21.918,19.299,19.287,78.393]
[1688410977678,21.916,19.301,19.287,78.393]
[1688410977856,21.916,19.301,19.288,55.0]